Cogmind - Beta 16.1 *** ADVENTURER MODE // 2026.03.24 @ 13:20:14 Player: Arzee Result: Destroyed by 2G-FPO(R) with Subdweller Laser Performance ------------- Evolutions (0) 0 Regions Visited (2) 400 Robots Destroyed (7) 35 Value Destroyed (280) 280 Prototype IDs (0) 0 Alien Tech Used (0) 0 Bonus (0) 0 TOTAL SCORE: 715 Bonus ------- None Cogmind --------- Core Integrity 0/250 Matter 280/300 Energy 21/100 System Corruption 0% Temperature Cool (6) Movement Core (400) Ox7 Location -10/Subcaves Parts ------- > --- POWER (1) -------- (None) > --- PROPULSION (2) --- (None) > --- UTILITY (2) ------ Scrap Shield > --- WEAPON (2) ------- Subdweller Laser > --- INVENTORY (5) ---- (None) Peak State ------------ > --- POWER ------------ Subdweller Power Source > --- PROPULSION ------- Aluminum Leg Aluminum Leg > --- UTILITY ---------- (None) > --- WEAPON ----------- Subdweller Laser Light Assault Rifle > --- INVENTORY -------- Flightbrick [Rating: 10] Favorites ----------- Power Light Ion Engine Engine Light Ion Engine Propulsion Aluminum Leg Leg Aluminum Leg Flight Unit Flight Unit Utility Scrap Shield Protection Scrap Shield Weapon Light Assault Rifle Energy Gun Subdweller Laser Ballistic Gun Light Assault Rifle Build | -11 -10 -10 ------- Run | Yrd Mat Sub Slots Evolved . | . . . Power . | . . . Propulsion . | . . . Utility . | . . . Weapon . | . . . Parts Attached 13 | 4 1 8 Power 2 | 1 . 1 Engine 2 | 1 . 1 Core . | . . . Reactor . | . . . Propulsion 6 | 2 . 4 Treads . | . . . Leg 3 | 2 . 1 Wheel . | . . . Hover . | . . . Flight 3 | . . 3 Utility 1 | . . 1 Device . | . . . Storage . | . . . Processor . | . . . Hackware . | . . . Protection 1 | . . 1 Artifact . | . . . Weapon 4 | 1 1 2 Energy Gun 2 | . . 2 Energy Cannon . | . . . Ballistic Gun 2 | 1 1 . Ballistic Cannon . | . . . Launcher . | . . . Special Weapon . | . . . Impact Weapon . | . . . Slashing Weapon . | . . . Piercing Weapon . | . . . Special Melee Weapon . | . . . Unidentified Prototypes . | . . . Parts Lost 7 | . . 7 Power 2 | . . 2 Propulsion 2 | . . 2 Utility . | . . . Weapon 3 | . . 3 Highest Loss Streak 5 | . . 5 To Critical Strikes . | . . . Average Backups 3 | 1 3 3 Power . | . 1 . Propulsion 2 | . 2 3 Utility . | . . . Weapon . | . . . Tool/Special . | . . . Unused Backups 3 | . . 3 Power 1 | . . 1 Propulsion 2 | . . 2 Utility . | . . . Weapon . | . . . Tool/Special . | . . . Average Slot Usage (%) 63 | . 67 61 Engine 12 | . 14 12 Leg 17 | . 28 15 Flight 7 | . . 9 Energy Gun 4 | . . 5 Ballistic Gun 20 | . 24 19 Peak Build Rating 10 | 4 5 10 Average Rating 5 | 2 4 6 On Entrance 3 | . 4 5 Avg Prop Armor Cover (%) . | . . . Naked Turns 3 | . . 3 Heaviest Build 10 | 4 5 10 Greatest Support 20 | 20 20 20 Greatest Overweight (x) 3 | . . 3 Average Overweight (x) . | . . . Largest Inventory Capacity 5 | 5 5 5 Average Capacity 5 | 5 5 5 Most Carried 5 | 3 5 5 Average Carried 3 | 1 4 4 Final Capacity 5 | 5 5 5 Final Carried 5 | 2 5 . Class Distribution -------------------- 100% | Mutant Dominant Class ---------------- Mutant | -10/Materials Mutant | -10/Subcaves Resources | -11 -10 -10 ----------- Run | Yrd Mat Sub Matter Collected 402 | 113 . 289 Remotely . | . . . Salvage Created 310 | . . 310 Parts 25 | . . 25 Haulers Intercepted . | . . . Recyclers Shooed . | . . . Parts Field Recycled . | . . . Retrieved Matter . | . . . Parts Self-Destructed 9 | . . 9 Prevented . | . . . Parts Restored . | . . . Kills | -11 -10 -10 ------- Run | Yrd Mat Sub Combat Hostiles Destroyed 7 | . . 7 Guns 7 | . . 7 Classes Destroyed 1 | . . 1 Subdweller 7 | . . 7 Best Kill Streak 6 | . . 6 Combat Bots Only 6 | . . 6 Max Kills in Single Turn 1 | . . 1 Gunslinging . | . . . Exploded . | . . . Melee . | . . . Uniques/NPCs Destroyed . | . . . Combat | -11 -10 -10 -------- Run | Yrd Mat Sub Hostile Shots Fired 86 | . . 86 Missed 29 | . . 29 Hits 57 | . . 57 Projectile 57 | . . 57 Critical Strikes 1 | . . 1 Damage Taken 932 | . . 932 Core 255 | . . 255 Absorbed by Shields . | . . . Ignored by Resistances 263 | . . 263 Core Remaining (%) 100 | 100 . . Volleys Fired 52 | . 1 51 Largest 2 | . 2 2 Hottest 80 | . 40 80 Shots Fired 71 | . 2 69 Gun 71 | . 2 69 Cannon . | . . . Launcher . | . . . Special . | . . . Kinetic 58 | . 2 56 Thermal 13 | . . 13 Explosive . | . . . Electromagnetic . | . . . Robot Hit Streak 49 | . . 49 Robot Miss Streak 1 | . . 1 Penetration Max . | . . . Secondary Targets 1 | . . 1 Max Gunslinging Chain 1 | . . 1 Shots Hit Robots 66 | . . 66 Core Hits 21 | . . 21 Critical Kills . | . . . Critical Parts Destroyed . | . . . Critical Strikes . | . . . Melee Attacks . | . . . Impact . | . . . Slashing . | . . . Piercing . | . . . Sneak Attacks . | . . . Combat Hostiles . | . . . Follow-up Attacks . | . . . Damage Inflicted 670 | . . 670 Guns 670 | . . 670 Cannons . | . . . Explosions . | . . . Melee . | . . . Ramming . | . . . Kinetic 411 | . . 411 Thermal 259 | . . 259 Explosive . | . . . Electromagnetic . | . . . Impact . | . . . Slashing . | . . . Piercing . | . . . Highest Corruption . | . . . Average Corruption . | . . . Corruption Purged . | . . . Corruption Blocked . | . . . Overload Shots . | . . . Overflow Damage . | . . . Projectiles . | . . . Explosions . | . . . Melee . | . . . Knockbacks . | . . . Impact . | . . . Kinetic . | . . . Secondary . | . . . Self-Inflicted Damage . | . . . Shots . | . . . Rammed . | . . . Targets Rammed . | . . . Kicked . | . . . Crushed . | . . . Highest Temperature 12 | . . 12 Average Temperature 6 | . . 6 Received Heat Transfer 210 | . . 210 Siege Activations . | . . . Martial Activations . | . . . Shielding Activations . | . . . Robots Disrupted . | . . . Combat Hostiles . | . . . Robots Corrupted . | . . . Combat Hostiles . | . . . Parts Fried . | . . . Impact Corruptions . | . . . Robots Melted . | . . . Combat Hostiles . | . . . Parts Melted . | . . . Heat Transferred 325 | . . 325 Parts Sabotaged . | . . . Parts Stolen . | . . . Parts Stripped . | . . . Power Chain Reactions . | . . . Alert | -11 -10 -10 ------- Run | Yrd Mat Sub Maximum Alert Level . | . . . Low Security (%) 100 | 100 100 . Level 1 . | . . . Level 2 . | . . . Level 3 . | . . . Level 4 . | . . . Level 5 . | . . . High Security . | . . . Max Security . | . . . Peak Influence 45 | . 45 . Initial . | . . . Average 2 | . 4 . Influence Increases 45 | . 45 . Lose Combat Pursuer 45 | . 45 . Influence Decreases 45 | . 10 35 Entered New Map 20 | . . 20 Time Decay 25 | . 10 15 Squads Dispatched 1 | . 1 . Investigation 1 | . 1 . Extermination . | . . . Reinforcement . | . . . Assault . | . . . Garrison . | . . . Intercept . | . . . Searches Triggered . | . . . Construction Impeded . | . . . Haulers Reinforced . | . . . Active Scanning Responses . | . . . Cargo Convoy Interrupts . | . . . Stealth | -11 -10 -10 --------- Run | Yrd Mat Sub Distress Signals . | . . . Communications Jammed . | . . . Distress Signals . | . . . Times Spotted 11 | . . 11 Peak Tracking Total 6 | . 3 6 Tactical Retreats 2 | . 1 1 Traps | -11 -10 -10 ------- Run | Yrd Mat Sub Traps Triggered 1 | . 1 . Indirectly . | . . . Trap Hack Attempts . | . . . Triggered . | . . . Disarmed . | . . . Reprogrammed . | . . . Reused . | . . . Traps Extracted . | . . . Installed . | . . . Triggered . | . . . Machines | -11 -10 -10 ---------- Run | Yrd Mat Sub Machines Disabled . | . . . Max in Single Turn . | . . . Machines Repaired . | . . . Machines Dismantled . | . . . Machines Sabotaged . | . . . Overloaded Fab Kills . | . . . Hacking | -11 -10 -10 --------- Run | Yrd Mat Sub Machines Accessed . | . . . Terminals . | . . . Fabricators . | . . . Repair Stations . | . . . Recycling Units . | . . . Scanalyzers . | . . . Garrison Access . | . . . Total Hacks . | . . . Successful . | . . . Failed . | . . . Catastrophic . | . . . Database Lockouts . | . . . Manual . | . . . Terminals . | . . . Fabricators . | . . . Repair Stations . | . . . Recycling Units . | . . . Scanalyzers . | . . . Garrison Access . | . . . Terminal Hacks . | . . . Fabricator Hacks . | . . . Repair Station Hacks . | . . . Recycling Unit Hacks . | . . . Scanalyzer . | . . . Garrison Access Hacks . | . . . Unauthorized Hacks . | . . . Terminals . | . . . Fabricators . | . . . Repair Stations . | . . . Recycling Units . | . . . Scanalyzers . | . . . Garrison Access . | . . . Data Cores Recovered . | . . . Used . | . . . Hacking Detections . | . . . Full Trace Events . | . . . Feedback Events . | . . . Feedback Blocked . | . . . Robot Schematics Acquired . | . . . Robots Built . | . . . Authchips . | . . . Time . | . . . Total Robot Build Rating . | . . . Part Schematics Acquired . | . . . Parts Built . | . . . Authchips . | . . . Time . | . . . Total Part Build Rating . | . . . Part Studies Acquired . | . . . Parts Repaired . | . . . Time . | . . . Parts Recycled . | . . . Recycled Matter . | . . . Retrieved Matter . | . . . Retrieved Components . | . . . Parts Scanalyzed . | . . . Part Schematics Acquired . | . . . Parts Damaged . | . . . Bothacking | -11 -10 -10 ------------ Run | Yrd Mat Sub Used RIF Installer . | . . . Robots Hacked . | . . . Non-combat . | . . . Combat . | . . . Robot Hacks Applied . | . . . Relay Couplers Released . | . . . Fabnet Peak Effective % . | . . . Robots Rewired . | . . . Allies Hacked . | . . . Hacks Repelled . | . . . Allies | -11 -10 -10 -------- Run | Yrd Mat Sub Total Allies . | . . . Largest Group . | . . . Highest-Rated Group . | . . . Highest-Rated Ally . | . . . Total Orders . | . . . Ally Attacks . | . . . Total Damage . | . . . Kills . | . . . Allies Corrupted . | . . . Allies Melted 1 | . . 1 Intel | -11 -10 -10 ------- Run | Yrd Mat Sub Active Infowar (turns) . | . . . Robot Analysis Total . | . . . Derelict Logs Recovered . | . . . Drone Launches . | . . . Drone Recoveries . | . . . Exploration | -11 -10 -10 ------------- Run | Yrd Mat Sub Turns Passed 539 | 61 81 397 Spaces Moved 521 | 48 62 411 Core 20 | 8 . 12 Treads . | . . . Legs 189 | 40 62 87 Wheels . | . . . Hover . | . . . Flight 312 | . . 312 Fastest Speed 37 | 50 120 37 Average Speed 71 | 108 120 60 Slowest Speed 200 | 120 120 200 Overloaded Moves . | . . . Propulsion Burnouts . | . . . Robots Hopped . | . . . Potential Cave-ins . | . . . Cave-ins Triggered . | . . . Exploration Rate (%) 16 | 4 10 35 Regions Visited 2 Branch Regions 1 Pre-discovered Areas . | . . . Known Exits Taken . | . . . Unknown Exits Taken 2 | 1 1 . Scrap Searched . | . . . Spaces Dug . | . . . Terrain Destroyed . | . . . Melee . | . . . Projectile . | . . . AOE . | . . . Terrain Rammed . | . . . Walls Destroyed . | . . . Machines Disabled . | . . . Actions | -11 -10 -10 --------- Run | Yrd Mat Sub Total 632 | 57 67 508 Wait 6 | . . 6 Move 519 | 47 61 411 Hop . | . . . Pick Up 22 | 6 4 12 Fast Attach . | . . . Attach 14 | 4 1 9 Detach . | . . . Swap 4 | . . 4 Drop 13 | . . 13 Fire 52 | . 1 51 Melee . | . . . Ram . | . . . Kick . | . . . Crush . | . . . Escape Stasis . | . . . Rewire 2 | . . 2 Trap . | . . . Miscellaneous . | . . . Route ------- -11/Scrapyard -10/Materials -10/Subcaves (discovered 2 exits: [Scr x2]) History --------- Turn | Location | Event 5 | -11/Scrapyard | Discovered new exit (range 15) 62 | -11/Scrapyard | Entered Materials 63 | -10/Materials | Met a group of wandering Federalists 103 | -10/Materials | Discovered new exit (range 10) 143 | -10/Materials | Entered Subcaves 144 | -10/Subcaves | Continued accompanying wandering Federalists (6) 144 | -10/Subcaves | Approached by a straggling Scientist 200 | -10/Subcaves | Ambushed by Subdwellers from Twisted Machinery 273 | -10/Subcaves | A Subdweller sparked back to life 273 | -10/Subcaves | A Subdweller sparked back to life 304 | -10/Subcaves | Build established: Mutant 340 | -10/Subcaves | Core integrity fell below 50% 411 | -10/Subcaves | Found Prototype Flight Unit 526 | -10/Subcaves | Core integrity fell below 20% 540 | -10/Subcaves | Destroyed by 2G-FPO(R) with Subdweller Laser Last Messages --------------- Dropped Flight Unit. Acquired Prototype Flight Unit. Dropped Aluminum Leg. Acquired Flight Unit. Subatomizers dissect the Disposable Heat Sink. Dropped Flight Unit. Acquired Aluminum Leg. Subatomizers dissect the Disposable Heat Sink. Acquired Aluminum Leg. Acquired 26 matter. Acquired 7 matter. Aluminum Leg destroyed. Lgt. Assault Rifle destroyed. Sub. Laser destroyed. Aluminum Leg destroyed. Sub. Power Source destroyed. Acquired Sub. Laser. Dropped Prototype Flight Unit. Acquired Scrap Shield. Map ----- +----------------------------------------------------+ | ??????????????????????????????????????????????# | | ?????????????????????????????????????????????# | | ???????????????????????????????????????????? | | ??????????????????????????????????????????# ## | | ??????????????????????????????????????????####?### | | ?????????????????????????????????????????????????? | | ?????????????????????????????????????????????????? | | ?????????????????????????????????????????????????? | | ?????????????????????????????????????????????????? | | ?????????????????????????????????????????????????? | | ?????????????????????????????????????????????????? | | ?????????????????????????????????????????????????? | | ?????????????????????????????????????????????????? | | ?????????????????????????????????????????????????? | | ?????????????????????????????????????????????????? | | ?????????????????????????????????????????????????? | | ?????????????????????????????????????????????????? | | ?????????????????????????????????????????????????? | | ?????????????????????????????????????????????????? | | ??????????????????????????????????????????????#??? | | ?????????????????????????????????????#####?## ##?? | | ???????????????????????????????????### # ## | | ??????????????????????????####??#### % | | ?????????????????????????## #### # #? | | ???????????????????####### ## ### #? | | ???????????????????#&#!##@ RR #?????? | | ???????????????????##%&!%= ## % #?????????? | | ???????????????????#*= =*! #######?????????? | | ???????????????????#&! #* #####???????????????? | | ???????????????????#![! ##???????????????????? | | ???????????????????## ## ###????????????????????? | | ????????????????????# [ #??????????????????????? | | ????????????????????# =[ #??????????????????????? | | ???????????????????## ##%*#??????????????????????? | | ???????????????????# #??????????????????????? | | ???????????????????# ## #??????????????????????? | | ???????????????????# ## ##?????????????????????? | | ???????????????????## #?????????????????????? | | ????????????????????# # #?????????????????????? | | ??????????????????### #?????????????????????? | | ?????????????????## ##?????????????????????? | | ?????????????????# !*## #??????????????????????? | | ?????????????????# =[ #" ###????????????????????? | | ?????????????????# #! " ###??????????????????? | | ?????????????????# ="= ##?????????????????? | | ?????????????????#" &*"" #?????????????????? | | ?????????????????# = #?????????????????? | | ?????????????????## "= #?????????????????? | | ??????????????????#### #?????????????????? | | ???????????????????#?## ##?????????????????? | +----------------------------------------------------+ Best States ------------- Heat Dissipation 25 Energy Generation 15 Energy Capacity 200 Matter Stores 300 Matter Capacity 300 Sight Range 16 Terrain Scan Density 10 Armor Coverage 800 Resistance: KI 20 Resistance: TH 20 Resistance: EX 20 Resistance: EM 20 Resistance: I 20 Resistance: S 20 Resistance: P 20 Evasion (%) 62 Offensive Hacking 10 Item Schematics ----------------- None Robot Schematics ------------------ None Fabricated ------------ Nothing Repaired ---------- Nothing Studied --------- None Alien Tech Used ----------------- None Achievements -------------- Strength In Numbers Challenges ------------ None Game ------ Seed GuidanceModifiedKit Manual? 0 Play Time 00:11:03 Cumulative 1.9 hours Start 2026.03.24 @ 13:10:01 End 2026.03.24 @ 13:20:14 Sessions 1 Manual Loads 0 Difficulty Adventurer Special Mode None Game No. 6 Rogue 0 Adventurer 6 Explorer 0 Win Type - Total 0 Types 0/0/0/0/0/0/0/0/0/0 Lore% 2 Gallery% 5 Achievement% 6 Wizard Run 0 Options --------- Layout 1 ASCII 0 Keyboard 0 Movement Mouse Keybinds 0 Fullscreen 1 Font 32/Tamsyn Map View 50x35 Zoom Use 0% Tactical HUD 0 Map Filters NONE Filters NONE Steam 1 RUN: 5527e218-ca81-4108-bfc8-468877f142d1